Workbook

Sheet Client Account Example
C9: IM calc | D9: Haircut | E9: Required IM | F9: Excess | G9: Total IM
B10: Client 1 | C10: 50 | D10: 0.05 | E10: =IM_1/(1-Haircut1) -> 52.63157895 | F10: 10 | G10: =IM_C1+ExcessIM1 -> 62.63157895
B11: Client 2 | C11: 100 | D11: 0.05 | E11: =IM_2/(1-Haircut2) -> 105.2631579 | F11: 20 | G11: =IM_C2+ExcessIM2 -> 125.2631579
B12: Client 3 | C12: 150 | D12: 0.05 | E12: =IM_3/(1-Haircut3) -> 157.8947368 | F12: 30 | G12: =IM_C3+ExcessIM3 -> 187.8947368
B13: Correlation | C13: 0.5
D15: CM | E15: Omnibus (CCP) | I15: Separate accounts (CCP)
D16: Excess | E16: Unallocated | F16: Client 1 | G16: Client 2 | H16: Client 3 | I16: Client 1 | J16: Client 2 | K16: Client 3 | L16: Total
B17: Net Omnibus | D17: =SUM(G10:G12)-E17 -> 112.6315789 | E17: =SQRT(IM_C1^2+IM_C2^2+IM_C3^2+2*Corr*(IM_C1*IM_C2+IM_C1*IM_C3+IM_C2*IM_C3)) -> 263.1578947 | L17: =SUM(D17:K17) -> 375.7894737
B18: Gross Omnibus | D18: =SUM(G10:G12)-E18 -> 60 | E18: =SUM(E10:E12) -> 315.7894737 | L18: 375.7894737
B19: Gross Omnibus with excess | E19: =SUM(E10:F12) -> 375.7894737 | L19: 375.7894737
B20: LSOC without excess | D20: =SUM(F10:F12) -> 60 | F20: =IM_C1 -> 52.63157895 | G20: =IM_C2 -> 105.2631579 | H20: =IM_C3 -> 157.8947368 | L20: 375.7894737
B21: LSOC with unallocated excess | E21: =SUM(F10:F12) -> 60 | F21: =IM_C1 -> 52.63157895 | G21: =IM_C2 -> 105.2631579 | H21: =IM_C3 -> 157.8947368 | L21: 375.7894737
B22: LSOC with excess | F22: =G10 -> 62.63157895 | G22: =G11 -> 125.2631579 | H22: =G12 -> 187.8947368 | L22: 375.7894737
B23: Full segregation by value | F23: =SUM(E10:E12)-SUM(C10:C12) -> 15.78947368 | I23: =IM_1+ExcessIM1 -> 60 | J23: =IM_2+ExcessIM2 -> 120 | K23: =IM_3+ExcessIM3 -> 180 | L23: 375.7894737
B24: Full segregation by asset | I24: =TRANSPOSE(G10:G12) -> 62.63157895 | J24: 125.2631579 | K24: 187.8947368 | L24: 375.7894737
B25: Direct pledge | I25: =TRANSPOSE(G10:G12) -> 62.63157895 | J25: 125.2631579 | K25: 187.8947368 | L25: 375.7894737
